[Event "44th Chess Olympiad Open 2022"]
[Site "Chennai"]
[Date "2022.08.08"]
[Round "10.40"]
[White "Zambrana, Osvaldo"]
[Black "Liyanage, Ranindu Dilshan"]
[Result "0-1"]
[WhiteElo "2417"]
[BlackElo "2286"]
[Annotator "RC"]
[PlyCount "74"]
[EventDate "2022.??.??"]
[TimeControl "60"]

1. e4 {[%emt 0:00:05]} e6 {[%emt 0:00:16]} 2. d4 {[%emt 0:00:38]} d5 {[%emt 0:
00:00]} 3. Nd2 {[%emt 0:00:12]} c5 {[%emt 0:00:25]} 4. Ngf3 {[%emt 0:00:17]}
cxd4 {[%emt 0:00:14]} 5. exd5 {[%emt 0:00:04]} Qxd5 {[%emt 0:00:24]} 6. Bc4 {
[%emt 0:00:04]} Qd7 {[%emt 0:00:27]} 7. O-O {[%emt 0:00:17]} Nc6 {[%emt 0:00:
00]} 8. Nb3 {[%emt 0:00:17]} a6 {[%emt 0:00:21]} 9. Nbxd4 {[%emt 0:00:09]} Nxd4
{[%emt 0:00:08]} 10. Nxd4 {[%emt 0:00:07]} Qc7 {[%emt 0:00:08]} 11. b3 {
[%emt 0:03:42]} Bd6 {[%emt 0:03:49]} 12. h3 {[%emt 0:01:03]} Ne7 {[%emt 0:00:
00]} 13. Bb2 {[%emt 0:05:48]} O-O {[%emt 0:01:25]} 14. Re1 {[%emt 0:01:34]} Ng6
{[%emt 0:05:09]} 15. Qh5 {[%emt 0:04:39]} b5 {[%emt 0:09:24]} 16. Bd3 {[%emt 0:
00:00]} Bb7 {[%emt 0:00:28]} 17. a4 {[%emt 0:09:14]} Bh2+ {[%emt 0:01:17]} 18.
Kh1 {[%emt 0:09:38]} Bxg2+ {[%emt 0:00:17]} 19. Kxg2 {[%emt 0:00:01]} Nf4+ {
[%emt 0:00:08]} 20. Kxh2 {[%emt 0:00:04]} Nxh5+ {[%emt 0:00:06]} 21. Kg1 {
[%emt 0:00:05]} Nf4 {[%emt 0:02:19]} 22. Bf1 {[%emt 0:00:02]} e5 {[%emt 0:00:
00]} 23. Nxb5 {[%emt 0:03:56]} axb5 {[%emt 0:00:34]} 24. Bxe5 {[%emt 0:00:08]}
Qxc2 {[%emt 0:00:39]} 25. Bxf4 {[%emt 0:00:07]} bxa4 {[%emt 0:00:15]} 26. b4 {
[%emt 0:00:34]} a3 {[%emt 0:01:44]} 27. Bg2 {[%emt 0:04:07]} Qg6 {[%emt 0:00:
00]} 28. Bg3 {[%emt 0:04:04]} Ra4 {[%emt 0:01:16]} 29. b5 {[%emt 0:01:46]} Ra5
{[%emt 0:05:15]} 30. Bc6 {[%emt 0:04:50]} h5 {[%emt 0:02:02]} 31. Kh2 {[%emt 0:
00:00]} Rc8 {[%emt 0:00:51]} 32. Bd7 {[%emt 0:05:08]} Rc5 {[%emt 0:02:03]} 33.
Ra2 {[%emt 0:06:29]} h4 {[%emt 0:01:19]} 34. Bf4 {[%emt 0:06:19]} Rc2 {[%emt 0:
00:00]} 35. Rxc2 {[%emt 0:13:54]} Qxc2 {[%emt 0:00:53]} 36. Kg2 {[%emt 0:13:27]
} a2 {[%emt 0:02:04]} 37. Be5 {[%emt 0:02:20]} Qd2 {[%emt 0:00:16]} 0-1

[Event "44th Chess Olympiad Open 2022"]
[Site "Chennai"]
[Date "2022.08.08"]
[Round "10.40"]
[White "Bolanos, Fernando"]
[Black "Nabil Nazar, Mohamed"]
[Result "1/2-1/2"]
[WhiteElo "2258"]
[BlackElo "1845"]
[Annotator "NA RC"]
[PlyCount "103"]
[EventDate "2022.??.??"]
[TimeControl "60"]

1. e4 {[%emt 0:00:01]} c5 {[%emt 0:00:10]} 2. Nf3 {[%emt 0:00:06]} e6 {[%emt 0:
00:00]} 3. d4 {[%emt 0:00:17]} cxd4 {[%emt 0:00:09]} 4. Nxd4 {[%emt 0:00:05]}
Nf6 {[%emt 0:00:05]} 5. Nc3 {[%emt 0:01:45]} Nc6 {[%emt 0:00:10]} 6. Nxc6 {
[%emt 0:00:32]} bxc6 {[%emt 0:00:06]} 7. e5 {[%emt 0:00:06]} Nd5 {[%emt 0:00:
00]} 8. Ne4 {[%emt 0:00:03]} Bb7 {[%emt 0:00:06]} 9. Be2 {[%emt 0:00:03]} c5 {
[%emt 0:01:12]} 10. O-O {[%emt 0:00:11]} Qc7 {[%emt 0:01:16]} 11. c4 {[%emt 0:
00:00]} Ne3 {[%emt 0:00:32]} 12. Bxe3 {[%emt 0:00:05]} Bxe4 {[%emt 0:00:08]}
13. f4 {[%emt 0:02:42]} Be7 {[%emt 0:21:39]} 14. Bf3 {[%emt 0:13:23]} Bxf3 {
[%emt 0:04:13]} 15. Rxf3 {[%emt 0:01:16]} O-O {[%emt 0:03:36]} 16. Rh3 {
[%emt 0:09:18]} g6 {[%emt 0:02:16]} 17. Bd2 {[%emt 0:01:32]} f6 {[%emt 0:10:57]
} 18. Bc3 {[%emt 0:08:37]} fxe5 {[%emt 0:01:25]} 19. Rd3 {[%emt 0:00:09]} Rad8
{[%emt 0:04:49]} 20. fxe5 {[%emt 0:06:14]} d6 {[%emt 0:12:15]} 21. Qe1 {
[%emt 0:02:19]} Qc8 {[%emt 0:12:37]} 22. exd6 {[%emt 0:07:22]} Bxd6 {[%emt 0:
00:00]} 23. Rxd6 {[%emt 0:00:09]} Rxd6 {[%emt 0:00:08]} 24. Qe5 {[%emt 0:00:03]
} Rd4 {[%emt 0:03:49]} 25. Bxd4 {[%emt 0:00:19]} cxd4 {[%emt 0:00:01]} 26. Qxd4
{[%emt 0:00:35]} Rd8 {[%emt 0:03:53]} 27. Qe4 {[%emt 0:14:36]} Qc5+ {[%emt 0:
00:00]} 28. Kh1 {[%emt 0:01:15]} e5 {[%emt 0:02:10]} 29. Re1 {[%emt 0:15:49]}
Rd2 {[%emt 0:02:25]} 30. b4 {[%emt 0:10:18]} Qd4 {[%emt 0:07:26]} 31. Qxd4 {
[%emt 0:02:48]} exd4 {[%emt 0:00:02]} 32. Kg1 {[%emt 0:00:41]} Rxa2 {[%emt 0:
00:00]} 33. Rd1 {[%emt 0:00:01]} Ra4 {[%emt 0:00:08]} 34. Rb1 {[%emt 0:00:02]}
a5 {[%emt 0:00:14]} 35. c5 {[%emt 0:01:07]} axb4 {[%emt 0:01:38]} 36. c6 {
[%emt 0:00:01]} Ra6 {[%emt 0:01:17]} 37. Rc1 {[%emt 0:00:18]} Ra8 {[%emt 0:00:
00]} 38. Kf2 {[%emt 0:01:11]} b3 {[%emt 0:00:29]} 39. Kf3 {[%emt 0:00:44]} Rc8
{[%emt 0:01:21]} 40. Ke4 {[%emt 0:00:27]} b2 {[%emt 0:00:08]} 41. Rb1 {[%emt 0:
00:00]} Rxc6 {[%emt 0:30:15]} 42. Rxb2 {[%emt 0:00:04]} Rc4 {[%emt 0:02:01]}
43. Rd2 {[%emt 0:00:00]} Kg7 {[%emt 0:00:00]} 44. h3 {[%emt 0:00:00]} Kh6 {
[%emt 0:00:00]} 45. Rxd4 {[%emt 0:00:00]} Rxd4+ {[%emt 0:00:00]} 46. Kxd4 {
[%emt 0:00:00]} Kg5 {[%emt 0:00:00]} 47. g3 {[%emt 0:00:00]} Kf5 {[%emt 0:00:
00]} 48. Kd5 {[%emt 0:00:00]} g5 {[%emt 0:00:00]} 49. Kd4 {[%emt 0:00:00]} h5 {
[%emt 0:00:00]} 50. Kd5 {[%emt 0:00:00]} h4 {[%emt 0:00:00]} 51. gxh4 {[%emt 0:
00:00]} gxh4 {[%emt 0:00:00]} 52. Kd4 {[%emt 0:00:00]} 1/2-1/2

[Event "44th Chess Olympiad Open 2022"]
[Site "Chennai"]
[Date "2022.08.08"]
[Round "10.40"]
[White "De Silva, L M S T.."]
[Black "Pinto, Daniel"]
[Result "1-0"]
[WhiteElo "2212"]
[BlackElo "2249"]
[Annotator "NA RC"]
[PlyCount "85"]
[EventDate "2022.??.??"]
[TimeControl "60"]

1. e4 {[%emt 0:00:08]} e5 {[%emt 0:00:25]} 2. Nf3 {[%emt 0:00:09]} Nc6 {
[%emt 0:00:13]} 3. Bb5 {[%emt 0:00:25]} Nf6 {[%emt 0:00:17]} 4. O-O {[%emt 0:
00:00]} Nxe4 {[%emt 0:00:21]} 5. Re1 {[%emt 0:00:50]} Nd6 {[%emt 0:00:35]} 6.
Nxe5 {[%emt 0:01:07]} Be7 {[%emt 0:05:45]} 7. Bf1 {[%emt 0:02:27]} Nxe5 {
[%emt 0:02:40]} 8. Rxe5 {[%emt 0:00:08]} O-O {[%emt 0:00:11]} 9. Nc3 {[%emt 0:
00:00]} Ne8 {[%emt 0:05:47]} 10. Nd5 {[%emt 0:02:25]} Bd6 {[%emt 0:00:24]} 11.
Re1 {[%emt 0:01:23]} c6 {[%emt 0:02:37]} 12. Ne3 {[%emt 0:00:13]} Be7 {[%emt 0:
00:00]} 13. Qe2 {[%emt 0:34:55]} Bf6 {[%emt 0:01:04]} 14. Ng4 {[%emt 0:06:43]}
d5 {[%emt 0:00:40]} 15. Nxf6+ {[%emt 0:07:42]} Qxf6 {[%emt 0:00:30]} 16. d4 {
[%emt 0:03:06]} Be6 {[%emt 0:03:32]} 17. c3 {[%emt 0:03:51]} Nd6 {[%emt 0:00:
00]} 18. g3 {[%emt 0:03:37]} Rfe8 {[%emt 0:12:22]} 19. Bf4 {[%emt 0:02:10]} Bf5
{[%emt 0:01:14]} 20. Be5 {[%emt 0:03:15]} Qg6 {[%emt 0:00:28]} 21. Qd1 {
[%emt 0:01:50]} Bc2 {[%emt 0:08:56]} 22. Qc1 {[%emt 0:07:15]} Nc4 {[%emt 0:00:
00]} 23. b3 {[%emt 0:00:59]} Nxe5 {[%emt 0:00:32]} 24. dxe5 {[%emt 0:01:12]}
Be4 {[%emt 0:01:16]} 25. Qe3 {[%emt 0:01:52]} Re6 {[%emt 0:09:38]} 26. f3 {
[%emt 0:02:30]} Bf5 {[%emt 0:00:06]} 27. c4 {[%emt 0:00:37]} f6 {[%emt 0:10:08]
} 28. cxd5 {[%emt 0:00:55]} cxd5 {[%emt 0:00:21]} 29. Qd4 {[%emt 0:02:08]} Rd8
{[%emt 0:00:12]} 30. exf6 {[%emt 0:02:08]} Qxf6 {[%emt 0:00:08]} 31. Qxa7 {
[%emt 0:01:17]} Rb6 {[%emt 0:00:11]} 32. Qa4 {[%emt 0:00:30]} Bd7 {[%emt 0:00:
00]} 33. Qa5 {[%emt 0:02:34]} Rd6 {[%emt 0:00:09]} 34. Rad1 {[%emt 0:01:01]}
Bc6 {[%emt 0:00:36]} 35. f4 {[%emt 0:00:46]} g5 {[%emt 0:00:04]} 36. Bg2 {
[%emt 0:00:48]} gxf4 {[%emt 0:01:11]} 37. Rf1 {[%emt 0:00:05]} f3 {[%emt 0:00:
00]} 38. Rxf3 {[%emt 0:00:16]} Qb2 {[%emt 0:00:27]} 39. Qc7 {[%emt 0:03:32]}
R6d7 {[%emt 0:00:24]} 40. Qf4 {[%emt 0:00:17]} Qxa2 {[%emt 0:00:42]} 41. Bh3 {
[%emt 0:31:02]} Qb2 {[%emt 0:06:24]} 42. Bxd7 {[%emt 0:00:00]} Bxd7 {[%emt 0:
00:00]} 43. Qg5+ {[%emt 0:00:00]} 1-0

[Event "44th Chess Olympiad Open 2022"]
[Site "Chennai"]
[Date "2022.08.08"]
[Round "10.40"]
[White "Alahakoon, Isuru"]
[Black "Gemy, Jose Daniel"]
[Result "0-1"]
[WhiteElo "2000"]
[BlackElo "2373"]
[Annotator "RC"]
[PlyCount "92"]
[EventDate "2022.??.??"]
[TimeControl "60"]

1. Nf3 {[%emt 0:00:28]} Nf6 {[%emt 0:00:11]} 2. d4 {[%emt 0:00:37]} g6 {
[%emt 0:00:35]} 3. Bg5 {[%emt 0:00:56]} Ne4 {[%emt 0:01:01]} 4. Bh4 {[%emt 0:
00:00]} c5 {[%emt 0:01:30]} 5. Nbd2 {[%emt 0:06:04]} d5 {[%emt 0:00:16]} 6. e3
{[%emt 0:09:06]} Qb6 {[%emt 0:01:19]} 7. dxc5 {[%emt 0:10:41]} Qxb2 {[%emt 0:
00:00]} 8. Nxe4 {[%emt 0:00:36]} dxe4 {[%emt 0:00:07]} 9. Qd4 {[%emt 0:12:38]}
Bg7 {[%emt 0:01:51]} 10. Bb5+ {[%emt 0:06:05]} Nd7 {[%emt 0:11:48]} 11. Qxb2 {
[%emt 0:10:04]} Bxb2 {[%emt 0:00:06]} 12. Rb1 {[%emt 0:00:05]} Bc3+ {[%emt 0:
00:00]} 13. Nd2 {[%emt 0:00:11]} a6 {[%emt 0:06:13]} 14. Ba4 {[%emt 0:00:54]}
Kd8 {[%emt 0:02:14]} 15. Bxd7 {[%emt 0:07:16]} Bxd7 {[%emt 0:07:45]} 16. O-O {
[%emt 0:04:56]} Bxd2 {[%emt 0:06:04]} 17. Rfd1 {[%emt 0:01:48]} Bc6 {[%emt 0:
00:00]} 18. Rxd2+ {[%emt 0:01:29]} Ke8 {[%emt 0:00:06]} 19. h3 {[%emt 0:04:13]}
f6 {[%emt 0:02:25]} 20. Bg3 {[%emt 0:04:58]} Rc8 {[%emt 0:02:46]} 21. c4 {
[%emt 0:06:16]} Kf7 {[%emt 0:01:15]} 22. Kf1 {[%emt 0:01:24]} Rhd8 {[%emt 0:00:
00]} 23. Ke2 {[%emt 0:01:28]} Rxd2+ {[%emt 0:00:19]} 24. Kxd2 {[%emt 0:00:27]}
Rd8+ {[%emt 0:00:03]} 25. Ke2 {[%emt 0:00:54]} Rd3 {[%emt 0:00:39]} 26. Rb3 {
[%emt 0:00:55]} Rd7 {[%emt 0:00:21]} 27. Rb2 {[%emt 0:00:54]} e5 {[%emt 0:00:
00]} 28. f4 {[%emt 0:01:57]} exf3+ {[%emt 0:02:53]} 29. gxf3 {[%emt 0:00:05]}
h5 {[%emt 0:00:55]} 30. h4 {[%emt 0:02:34]} Ke6 {[%emt 0:00:22]} 31. Bf2 {
[%emt 0:04:17]} e4 {[%emt 0:00:54]} 32. fxe4 {[%emt 0:00:56]} Bxe4 {[%emt 0:00:
00]} 33. Rb6+ {[%emt 0:00:19]} Kf5 {[%emt 0:00:15]} 34. Be1 {[%emt 0:00:47]} g5
{[%emt 0:01:40]} 35. Bc3 {[%emt 0:00:32]} Rf7 {[%emt 0:00:14]} 36. Kf2 {
[%emt 0:00:40]} gxh4 {[%emt 0:01:25]} 37. Kg1 {[%emt 0:00:16]} Rg7+ {[%emt 0:
00:00]} 38. Kh2 {[%emt 0:00:10]} Bc6 {[%emt 0:04:00]} 39. Rb2 {[%emt 0:00:40]}
Rg3 {[%emt 0:00:09]} 40. Bd4 {[%emt 0:00:49]} Kg4 {[%emt 0:00:55]} 41. e4 {
[%emt 0:10:23]} Bxe4 {[%emt 0:01:46]} 42. Bxf6 {[%emt 0:03:43]} Rh3+ {[%emt 0:
00:00]} 43. Kg1 {[%emt 0:00:04]} Rh1+ {[%emt 0:00:05]} 44. Kf2 {[%emt 0:00:05]}
h3 {[%emt 0:00:08]} 45. c6 {[%emt 0:09:41]} bxc6 {[%emt 0:00:54]} 46. Re2 {
[%emt 0:01:07]} Rh2+ {[%emt 0:00:13]} 0-1

[Event "44th Chess Olympiad Open 2022"]
[Site "Chennai"]
[Date "2022.08.08"]
[Round "10.41"]
[White "Zaibi, Amir"]
[Black "Lau, Lut Yin Luke"]
[Result "1-0"]
[WhiteElo "2398"]
[BlackElo "2027"]
[Annotator "RC"]
[PlyCount "85"]
[EventDate "2022.??.??"]
[TimeControl "60"]

1. Nf3 {[%emt 0:00:04]} d5 {[%emt 0:01:24]} 2. d4 {[%emt 0:00:20]} e6 {[%emt 0:
00:00]} 3. Bf4 {[%emt 0:00:49]} Nf6 {[%emt 0:00:58]} 4. e3 {[%emt 0:00:17]} Bd6
{[%emt 0:02:13]} 5. Bg3 {[%emt 0:00:51]} O-O {[%emt 0:01:42]} 6. Nbd2 {[%emt 0:
00:00]} c5 {[%emt 0:02:06]} 7. c3 {[%emt 0:00:07]} Nc6 {[%emt 0:00:52]} 8. Bd3
{[%emt 0:00:12]} b6 {[%emt 0:06:18]} 9. Qe2 {[%emt 0:00:47]} Bb7 {[%emt 0:00:
00]} 10. Rd1 {[%emt 0:00:16]} Re8 {[%emt 0:11:38]} 11. e4 {[%emt 0:05:58]} dxe4
{[%emt 0:08:35]} 12. Nxe4 {[%emt 0:00:15]} Bxg3 {[%emt 0:00:38]} 13. hxg3 {
[%emt 0:01:50]} cxd4 {[%emt 0:05:42]} 14. Nxf6+ {[%emt 0:05:44]} Qxf6 {[%emt 0:
00:00]} 15. Bxh7+ {[%emt 0:00:32]} Kf8 {[%emt 0:00:04]} 16. Be4 {[%emt 0:01:19]
} Rad8 {[%emt 0:07:48]} 17. Rh8+ {[%emt 0:10:28]} Ke7 {[%emt 0:00:07]} 18.
Rxe8+ {[%emt 0:00:04]} Kxe8 {[%emt 0:00:21]} 19. Qb5 {[%emt 0:01:07]} e5 {
[%emt 0:11:14]} 20. Bxc6+ {[%emt 0:02:57]} Bxc6 {[%emt 0:09:52]} 21. Qxe5+ {
[%emt 0:00:06]} Qxe5+ {[%emt 0:00:14]} 22. Nxe5 {[%emt 0:00:05]} Bxg2 {[%emt 0:
00:00]} 23. Rxd4 {[%emt 0:00:22]} Rxd4 {[%emt 0:10:41]} 24. cxd4 {[%emt 0:00:
00]} Bd5 {[%emt 0:00:46]} 25. a3 {[%emt 0:00:23]} f6 {[%emt 0:01:49]} 26. Ng4 {
[%emt 0:00:42]} Kd7 {[%emt 0:01:01]} 27. Kd2 {[%emt 0:00:54]} Kd6 {[%emt 0:00:
00]} 28. Ne3 {[%emt 0:01:02]} Be4 {[%emt 0:00:56]} 29. Kc3 {[%emt 0:08:40]} g5
{[%emt 0:08:01]} 30. Kc4 {[%emt 0:00:00]} Bb7 {[%emt 0:02:32]} 31. Kd3 {
[%emt 0:00:00]} Bf3 {[%emt 0:01:12]} 32. Nc2 {[%emt 0:01:47]} Bh5 {[%emt 0:00:
00]} 33. Nb4 {[%emt 0:05:51]} Bf3 {[%emt 0:01:04]} 34. Na2 {[%emt 0:00:31]} Bd5
{[%emt 0:00:29]} 35. Nc3 {[%emt 0:00:07]} Bc6 {[%emt 0:00:34]} 36. Kc4 {
[%emt 0:01:26]} Bg2 {[%emt 0:00:28]} 37. Nb5+ {[%emt 0:01:16]} Kc6 {[%emt 0:00:
00]} 38. Nxa7+ {[%emt 0:00:14]} Kb7 {[%emt 0:00:29]} 39. Nb5 {[%emt 0:00:11]}
Kc6 {[%emt 0:00:14]} 40. Nc3 {[%emt 0:00:50]} Bf1+ {[%emt 0:00:42]} 41. Kb4 {
[%emt 0:30:05]} Bd3 {[%emt 0:14:31]} 42. a4 {[%emt 0:00:00]} Bc2 {[%emt 0:00:
00]} 43. a5 {[%emt 0:00:00]} 1-0

[Event "44th Chess Olympiad Open 2022"]
[Site "Chennai"]
[Date "2022.08.08"]
[Round "10.41"]
[White "Amdouni, Zoubaier"]
[Black "Nissinen, Niilo Man"]
[Result "1-0"]
[WhiteElo "2224"]
[BlackElo "1693"]
[Annotator "RC"]
[PlyCount "129"]
[EventDate "2022.??.??"]
[TimeControl "60"]

1. e4 {[%emt 0:00:03]} c5 {[%emt 0:00:05]} 2. Nc3 {[%emt 0:00:30]} Nc6 {
[%emt 0:00:09]} 3. Bb5 {[%emt 0:00:03]} Nd4 {[%emt 0:00:14]} 4. Nf3 {[%emt 0:
00:00]} Nxb5 {[%emt 0:00:13]} 5. Nxb5 {[%emt 0:00:01]} a6 {[%emt 0:00:15]} 6.
Nc3 {[%emt 0:00:05]} d6 {[%emt 0:00:20]} 7. d4 {[%emt 0:00:08]} cxd4 {[%emt 0:
00:00]} 8. Qxd4 {[%emt 0:00:04]} e5 {[%emt 0:00:27]} 9. Qb4 {[%emt 0:00:36]}
Ne7 {[%emt 0:06:52]} 10. Be3 {[%emt 0:13:23]} b5 {[%emt 0:15:36]} 11. a4 {
[%emt 0:10:29]} Nc6 {[%emt 0:00:38]} 12. Qb3 {[%emt 0:00:09]} Na5 {[%emt 0:00:
00]} 13. Qa2 {[%emt 0:12:43]} b4 {[%emt 0:07:15]} 14. Nd5 {[%emt 0:03:29]} Rb8
{[%emt 0:04:20]} 15. Rd1 {[%emt 0:20:43]} Be6 {[%emt 0:10:52]} 16. O-O {
[%emt 0:07:30]} Be7 {[%emt 0:16:35]} 17. Nd2 {[%emt 0:09:17]} O-O {[%emt 0:00:
00]} 18. Nc4 {[%emt 0:00:50]} Nxc4 {[%emt 0:00:44]} 19. Qxc4 {[%emt 0:00:02]}
a5 {[%emt 0:00:50]} 20. Qa6 {[%emt 0:04:19]} Ra8 {[%emt 0:04:02]} 21. Qb7 {
[%emt 0:01:27]} Bg5 {[%emt 0:03:48]} 22. Bxg5 {[%emt 0:02:18]} Qxg5 {[%emt 0:
00:00]} 23. Qe7 {[%emt 0:00:03]} Qg6 {[%emt 0:02:54]} 24. f3 {[%emt 0:06:39]}
Rac8 {[%emt 0:10:02]} 25. Qxd6 {[%emt 0:06:41]} Bxd5 {[%emt 0:01:41]} 26. Qxg6
{[%emt 0:00:20]} hxg6 {[%emt 0:00:31]} 27. Rxd5 {[%emt 0:00:07]} Rxc2 {[%emt 0:
00:00]} 28. Rf2 {[%emt 0:00:45]} Rfc8 {[%emt 0:01:20]} 29. Rxc2 {[%emt 0:01:04]
} Rxc2 {[%emt 0:00:10]} 30. Rxe5 {[%emt 0:00:06]} Rxb2 {[%emt 0:00:25]} 31.
Rxa5 {[%emt 0:00:11]} Ra2 {[%emt 0:01:28]} 32. Ra8+ {[%emt 0:00:10]} Kh7 {
[%emt 0:00:03]} 33. h4 {[%emt 0:00:10]} b3 {[%emt 0:00:33]} 34. Kh2 {[%emt 0:
00:00]} b2 {[%emt 0:05:04]} 35. Rb8 {[%emt 0:00:04]} b1=Q {[%emt 0:02:00]} 36.
Rxb1 {[%emt 0:00:04]} Rxa4 {[%emt 0:00:05]} 37. Rb8 {[%emt 0:00:59]} Ra7 {
[%emt 0:03:04]} 38. Re8 {[%emt 0:00:27]} Rb7 {[%emt 0:00:23]} 39. g4 {[%emt 0:
00:00]} g5 {[%emt 0:00:47]} 40. hxg5 {[%emt 0:00:28]} Kg6 {[%emt 0:00:05]} 41.
Re5 {[%emt 0:30:50]} Ra7 {[%emt 0:08:10]} 42. Rd5 {[%emt 0:00:00]} Ra1 {
[%emt 0:01:54]} 43. Kg3 {[%emt 0:00:00]} Rb1 {[%emt 0:00:56]} 44. Rd6+ {
[%emt 0:00:00]} Kh7 {[%emt 0:00:28]} 45. f4 {[%emt 0:00:00]} Rg1+ {[%emt 0:00:
00]} 46. Kh3 {[%emt 0:00:00]} Re1 {[%emt 0:01:09]} 47. e5 {[%emt 0:00:00]} g6 {
[%emt 0:03:16]} 48. Rd2 {[%emt 0:00:00]} Kg7 {[%emt 0:00:47]} 49. Kg3 {[%emt 0:
00:00]} Kf8 {[%emt 0:01:52]} 50. Kf2 {[%emt 0:00:00]} Re4 {[%emt 0:02:52]} 51.
Kf3 {[%emt 0:00:00]} Re1 {[%emt 0:00:19]} 52. Re2 {[%emt 0:00:00]} Rf1+ {
[%emt 0:00:12]} 53. Ke4 {[%emt 0:00:00]} Rg1 {[%emt 0:00:24]} 54. e6 {[%emt 0:
00:00]} fxe6 {[%emt 0:06:08]} 55. Ra2 {[%emt 0:00:00]} Rxg4 {[%emt 0:00:00]}
56. Ke5 {[%emt 0:00:00]} Rh4 {[%emt 0:00:43]} 57. Ra7 {[%emt 0:00:00]} Rg4 {
[%emt 0:00:35]} 58. Rh7 {[%emt 0:00:00]} Kg8 {[%emt 0:02:23]} 59. Re7 {[%emt 0:
00:00]} Rh4 {[%emt 0:00:16]} 60. Rxe6 {[%emt 0:00:00]} Kf7 {[%emt 0:01:09]} 61.
Ra6 {[%emt 0:00:00]} Kg7 {[%emt 0:01:57]} 62. Ra7+ {[%emt 0:00:00]} Kg8 {
[%emt 0:00:31]} 63. f5 {[%emt 0:00:00]} gxf5 {[%emt 0:01:23]} 64. Kf6 {[%emt 0:
00:00]} Rb4 {[%emt 0:01:45]} 65. Ra8+ {[%emt 0:00:00]} 1-0

[Event "44th Chess Olympiad Open 2022"]
[Site "Chennai"]
[Date "2022.08.08"]
[Round "10.41"]
[White "Deng, Yu Dong Michael"]
[Black "Boudriga, Mohamed Ali"]
[Result "1/2-1/2"]
[WhiteElo "2028"]
[BlackElo "2308"]
[Annotator "RC"]
[PlyCount "73"]
[EventDate "2022.??.??"]
[TimeControl "60"]

1. d4 {[%emt 0:00:04]} d6 {[%emt 0:01:52]} 2. c4 {[%emt 0:00:10]} e5 {[%emt 0:
00:00]} 3. Nc3 {[%emt 0:00:04]} exd4 {[%emt 0:01:40]} 4. Qxd4 {[%emt 0:00:02]}
Nf6 {[%emt 0:00:14]} 5. Nf3 {[%emt 0:01:33]} Be7 {[%emt 0:03:50]} 6. e3 {
[%emt 0:01:46]} O-O {[%emt 0:01:17]} 7. b3 {[%emt 0:00:44]} Nc6 {[%emt 0:04:31]
} 8. Qd2 {[%emt 0:00:24]} Bf5 {[%emt 0:01:22]} 9. Bb2 {[%emt 0:08:26]} a5 {
[%emt 0:05:31]} 10. Bd3 {[%emt 0:03:34]} Bxd3 {[%emt 0:14:10]} 11. Qxd3 {
[%emt 0:00:03]} d5 {[%emt 0:08:53]} 12. Rd1 {[%emt 0:06:32]} dxc4 {[%emt 0:00:
00]} 13. Qxc4 {[%emt 0:00:35]} Qc8 {[%emt 0:01:27]} 14. O-O {[%emt 0:00:27]}
Nb4 {[%emt 0:12:37]} 15. a3 {[%emt 0:36:43]} Na6 {[%emt 0:00:06]} 16. Nb5 {
[%emt 0:02:10]} Ne8 {[%emt 0:02:09]} 17. Be5 {[%emt 0:10:50]} c6 {[%emt 0:00:
00]} 18. Nd6 {[%emt 0:01:43]} Nxd6 {[%emt 0:00:12]} 19. Bxd6 {[%emt 0:00:02]}
Bxd6 {[%emt 0:00:22]} 20. Rxd6 {[%emt 0:00:02]} Qf5 {[%emt 0:00:14]} 21. e4 {
[%emt 0:06:16]} Qc5 {[%emt 0:00:13]} 22. Qd3 {[%emt 0:00:48]} Qxa3 {[%emt 0:00:
00]} 23. e5 {[%emt 0:07:40]} Nc5 {[%emt 0:06:20]} 24. Qf5 {[%emt 0:00:54]} Qxb3
{[%emt 0:07:07]} 25. Ng5 {[%emt 0:07:16]} g6 {[%emt 0:00:06]} 26. Qg4 {[%emt 0:
00:00]} Rae8 {[%emt 0:04:11]} 27. Qh4 {[%emt 0:01:54]} h5 {[%emt 0:00:07]} 28.
g4 {[%emt 0:00:34]} Rxe5 {[%emt 0:01:38]} 29. f4 {[%emt 0:02:27]} Qe3+ {
[%emt 0:00:26]} 30. Kh1 {[%emt 0:00:45]} Qe2 {[%emt 0:01:30]} 31. Rg1 {[%emt 0:
00:00]} Rxg5 {[%emt 0:00:21]} 32. Qxg5 {[%emt 0:00:04]} Qe4+ {[%emt 0:01:13]}
33. Rg2 {[%emt 0:00:02]} Qe1+ {[%emt 0:00:19]} 34. Rg1 {[%emt 0:00:01]} Qe4+ {
[%emt 0:00:19]} 35. Rg2 {[%emt 0:00:02]} Qb1+ {[%emt 0:00:20]} 36. Rg1 {
[%emt 0:00:01]} Qe4+ {[%emt 0:00:10]} 37. Rg2 {[%emt 0:00:37]} 1/2-1/2

[Event "44th Chess Olympiad Open 2022"]
[Site "Chennai"]
[Date "2022.08.08"]
[Round "10.41"]
[White "Kwong, Wing Ki"]
[Black "Bouzidi, Ahmed"]
[Result "0-1"]
[WhiteElo "1824"]
[BlackElo "2148"]
[Annotator "NA RC"]
[PlyCount "90"]
[EventDate "2022.??.??"]
[TimeControl "60"]

1. d4 {[%emt 0:00:04]} Nf6 {[%emt 0:00:06]} 2. c4 {[%emt 0:00:24]} e6 {[%emt 0:
00:00]} 3. Nf3 {[%emt 0:00:20]} b6 {[%emt 0:00:19]} 4. g3 {[%emt 0:00:58]} Bb7
{[%emt 0:00:12]} 5. Bg2 {[%emt 0:00:23]} g6 {[%emt 0:00:16]} 6. O-O {[%emt 0:
00:00]} Bg7 {[%emt 0:00:26]} 7. Nc3 {[%emt 0:00:34]} Ne4 {[%emt 0:00:23]} 8.
Qc2 {[%emt 0:07:54]} Nxc3 {[%emt 0:03:04]} 9. bxc3 {[%emt 0:01:56]} d6 {
[%emt 0:03:08]} 10. e4 {[%emt 0:01:54]} Nd7 {[%emt 0:00:14]} 11. Bg5 {[%emt 0:
00:00]} Qc8 {[%emt 0:00:17]} 12. Rfe1 {[%emt 0:01:26]} h6 {[%emt 0:01:37]} 13.
Bf4 {[%emt 0:02:42]} O-O {[%emt 0:06:01]} 14. Rad1 {[%emt 0:03:05]} a5 {
[%emt 0:02:42]} 15. a4 {[%emt 0:07:00]} g5 {[%emt 0:26:49]} 16. Bc1 {[%emt 0:
00:00]} e5 {[%emt 0:10:09]} 17. Ba3 {[%emt 0:03:02]} Qe8 {[%emt 0:06:50]} 18.
Re3 {[%emt 0:09:49]} Qe6 {[%emt 0:01:12]} 19. Bf1 {[%emt 0:12:57]} Rae8 {
[%emt 0:12:26]} 20. d5 {[%emt 0:10:29]} Qg6 {[%emt 0:01:16]} 21. Bd3 {[%emt 0:
00:00]} Bc8 {[%emt 0:01:38]} 22. Ne1 {[%emt 0:01:02]} Nf6 {[%emt 0:02:01]} 23.
f3 {[%emt 0:01:55]} h5 {[%emt 0:01:07]} 24. Ng2 {[%emt 0:00:38]} Bh6 {[%emt 0:
00:00]} 25. Ree1 {[%emt 0:00:42]} Bh3 {[%emt 0:01:39]} 26. Bc1 {[%emt 0:02:14]}
Kh8 {[%emt 0:02:38]} 27. Kh1 {[%emt 0:00:55]} Nd7 {[%emt 0:02:01]} 28. Ne3 {
[%emt 0:01:19]} g4 {[%emt 0:01:52]} 29. f4 {[%emt 0:06:33]} Bg7 {[%emt 0:09:24]
} 30. Nf5 {[%emt 0:00:54]} Bf6 {[%emt 0:00:05]} 31. Qf2 {[%emt 0:03:36]} Qh7 {
[%emt 0:03:49]} 32. Bc2 {[%emt 0:01:41]} exf4 {[%emt 0:00:37]} 33. gxf4 {
[%emt 0:01:09]} h4 {[%emt 0:00:30]} 34. e5 {[%emt 0:02:33]} dxe5 {[%emt 0:00:
00]} 35. Nd6 {[%emt 0:01:53]} Qh5 {[%emt 0:00:36]} 36. Nxe8 {[%emt 0:01:53]}
Rxe8 {[%emt 0:00:30]} 37. Qe2 {[%emt 0:02:54]} Re7 {[%emt 0:00:30]} 38. f5 {
[%emt 0:02:34]} e4 {[%emt 0:00:30]} 39. Bxe4 {[%emt 0:00:40]} Nc5 {[%emt 0:00:
00]} 40. Qc2 {[%emt 0:00:20]} Nxe4 {[%emt 0:00:30]} 41. Rxe4 {[%emt 0:30:35]}
g3 {[%emt 0:30:45]} 42. Rf4 {[%emt 0:00:00]} Re2 {[%emt 0:00:00]} 43. Qd3 {
[%emt 0:00:00]} Bg2+ {[%emt 0:00:00]} 44. Kg1 {[%emt 0:00:07]} gxh2+ {[%emt 0:
00:00]} 45. Kxh2 {[%emt 0:00:12]} Be4+ {[%emt 0:00:00]} 0-1